[Event "Titled Tuesday Blitz April 18 Late 2023"]
[White "KorolDimitriy75"]
[Black "Klukin, Kirill"]
[BlackFideId "24199273"]
[WhiteElo "2388"]
[BlackElo "2344"]
[Result "1-0"]
[Round "01"]
[TimeControl "180+2"]
[Date "2023.04.18"]
[WhiteClock "0:00:06"]
[BlackClock "0:00:36"]

1. d4 {[%clk 0:03:00]}  d6 {[%clk 0:02:59]} 2. c4 {[%clk 0:02:59]}  Nc6 {[%clk 0:02:58]} 3. Nf3 {[%clk 0:02:59]}  Bg4 {[%clk 0:02:57]} 4. e3 {[%clk 0:02:58]}  Nf6 {[%clk 0:02:57]} 5. Nc3 {[%clk 0:02:57]}  e5 {[%clk 0:02:57]} 6. Be2 {[%clk 0:02:56]}  g6 {[%clk 0:02:55]} 7. d5 {[%clk 0:02:54]}  Ne7 {[%clk 0:02:54]} 8. e4 {[%clk 0:02:54]}  Bg7 {[%clk 0:02:54]} 9. O-O {[%clk 0:02:54]}  O-O {[%clk 0:02:54]} 10. Ne1 {[%clk 0:02:49]}  Bxe2 {[%clk 0:02:52]} 11. Qxe2 {[%clk 0:02:50]}  Nd7 {[%clk 0:02:53]} 12. Nd3 {[%clk 0:02:50]}  f5 {[%clk 0:02:52]} 13. f3 {[%clk 0:02:49]}  a5 {[%clk 0:02:51]} 14. Bd2 {[%clk 0:02:33]}  b6 {[%clk 0:02:49]} 15. b3 {[%clk 0:02:29]}  h6 {[%clk 0:02:39]} 16. a3 {[%clk 0:02:18]}  Nc5 {[%clk 0:02:34]} 17. Rab1 {[%clk 0:02:13]}  g5 {[%clk 0:02:28]} 18. b4 {[%clk 0:02:07]}  Nxd3 {[%clk 0:02:25]} 19. Qxd3 {[%clk 0:02:07]}  axb4 {[%clk 0:02:08]} 20. axb4 {[%clk 0:02:07]}  fxe4 {[%clk 0:02:06]} 21. fxe4 {[%clk 0:02:02]}  Qd7 {[%clk 0:02:06]} 22. Nb5 {[%clk 0:01:49]}  Ng6 {[%clk 0:02:03]} 23. g3 {[%clk 0:01:45]}  Ra2 {[%clk 0:01:43]} 24. Rxf8+ {[%clk 0:01:17]}  Bxf8 {[%clk 0:01:44]} 25. Nc3 {[%clk 0:01:00]}  Ra3 {[%clk 0:01:40]} 26. Bc1 {[%clk 0:00:52]}  Ra8 {[%clk 0:01:40]} 27. Bd2 {[%clk 0:00:47]}  Be7 {[%clk 0:01:37]} 28. Qe2 {[%clk 0:00:35]}  Qh3 {[%clk 0:01:25]} 29. Qg2 {[%clk 0:00:26]}  Qd7 {[%clk 0:01:11]} 30. Qe2 {[%clk 0:00:25]}  Kg7 {[%clk 0:00:56]} 31. Rf1 {[%clk 0:00:22]}  Qh3 {[%clk 0:00:50]} 32. Qg2 {[%clk 0:00:21]}  Qxg2+ {[%clk 0:00:50]} 33. Kxg2 {[%clk 0:00:21]}  Ra3 {[%clk 0:00:50]} 34. Rb1 {[%clk 0:00:19]}  h5 {[%clk 0:00:50]} 35. Rb2 {[%clk 0:00:16]}  Bd8 {[%clk 0:00:49]} 36. Kf3 {[%clk 0:00:13]}  g4+ {[%clk 0:00:47]} 37. Ke2 {[%clk 0:00:12]}  h4 {[%clk 0:00:48]} 38. Kd3 {[%clk 0:00:12]}  Ra1 {[%clk 0:00:46]} 39. Rb1 {[%clk 0:00:12]}  Ra8 {[%clk 0:00:46]} 40. Rb2 {[%clk 0:00:11]}  Be7 {[%clk 0:00:42]} 41. Ra2 {[%clk 0:00:10]}  Rf8 {[%clk 0:00:42]} 42. Ra7 {[%clk 0:00:09]}  Bd8 {[%clk 0:00:43]} 43. Ra8 {[%clk 0:00:09]}  hxg3 {[%clk 0:00:37]} 44. hxg3 {[%clk 0:00:10]}  Rf3+ {[%clk 0:00:38]} 45. Ke2 {[%clk 0:00:09]}  Be7 {[%clk 0:00:35]} 46. Be1 {[%clk 0:00:09]}  Bg5 {[%clk 0:00:35]} 47. Rc8 {[%clk 0:00:09]}  Re3+ {[%clk 0:00:35]} 48. Kf2 {[%clk 0:00:08]}  Rd3 {[%clk 0:00:29]} 49. Ke2 {[%clk 0:00:08]}  Kh6 {[%clk 0:00:30]} 50. Kxd3 {[%clk 0:00:08]}  Nf4+ {[%clk 0:00:29]} 51. gxf4 {[%clk 0:00:07]}  exf4 {[%clk 0:00:30]} 52. Ke2 {[%clk 0:00:07]}  Bf6 {[%clk 0:00:30]} 53. Nb5 {[%clk 0:00:06]}  Kg5 {[%clk 0:00:30]} 54. Rxc7 {[%clk 0:00:06]}  f3+ {[%clk 0:00:30]} 55. Kf1 {[%clk 0:00:05]}  Kf4 {[%clk 0:00:30]} 56. Rf7 {[%clk 0:00:04]}  Kg5 {[%clk 0:00:30]} 57. Rxf6 {[%clk 0:00:04]}  Kxf6 {[%clk 0:00:31]} 58. Bg3 {[%clk 0:00:04]}  Ke7 {[%clk 0:00:31]} 59. Kf2 {[%clk 0:00:05]}  Kd7 {[%clk 0:00:32]} 60. Bxd6 {[%clk 0:00:05]}  Kd8 {[%clk 0:00:32]} 61. Bg3 {[%clk 0:00:05]}  Ke8 {[%clk 0:00:33]} 62. d6 {[%clk 0:00:05]}  Kf7 {[%clk 0:00:34]} 63. c5 {[%clk 0:00:05]}  Ke6 {[%clk 0:00:34]} 64. c6 {[%clk 0:00:05]}  Kf6 {[%clk 0:00:32]} 65. d7 {[%clk 0:00:05]}  Ke6 {[%clk 0:00:33]} 66. d8=Q {[%clk 0:00:05]}  Kf7 {[%clk 0:00:33]} 67. Qd5+ {[%clk 0:00:05]}  Kg6 {[%clk 0:00:34]} 68. Qf5+ {[%clk 0:00:05]}  Kh6 {[%clk 0:00:34]} 69. Qxg4 {[%clk 0:00:05]}  Kh7 {[%clk 0:00:34]} 70. Be5 {[%clk 0:00:05]}  Kh6 {[%clk 0:00:35]} 71. Bf6 {[%clk 0:00:05]}  Kh7 {[%clk 0:00:36]} 72. Qg7# {[%clk 0:00:06]} 1-0


[Site "https://www.chess.com"]

[Event "Titled Tuesday Blitz April 18 Late 2023"]
[White "Hauge, Lars Oskar"]
[Black "Bernat, David"]
[WhiteFideId "1509276"]
[BlackFideId "2099225"]
[WhiteElo "2431"]
[BlackElo "2387"]
[Result "1-0"]
[Round "01"]
[TimeControl "180+2"]
[Date "2023.04.18"]
[WhiteClock "0:01:05"]
[BlackClock "0:00:51"]

1. e4 {[%clk 0:02:56]}  c5 {[%clk 0:03:00]} 2. Nc3 {[%clk 0:02:53]}  g6 {[%clk 0:03:00]} 3. f4 {[%clk 0:02:52]}  Bg7 {[%clk 0:03:00]} 4. Nf3 {[%clk 0:02:53]}  Nc6 {[%clk 0:03:00]} 5. Bb5 {[%clk 0:02:52]}  Nd4 {[%clk 0:03:01]} 6. O-O {[%clk 0:02:52]}  a6 {[%clk 0:03:01]} 7. Bd3 {[%clk 0:02:51]}  e6 {[%clk 0:03:00]} 8. Nxd4 {[%clk 0:02:48]}  cxd4 {[%clk 0:03:01]} 9. Ne2 {[%clk 0:02:49]}  Ne7 {[%clk 0:02:59]} 10. c3 {[%clk 0:02:49]}  Qb6 {[%clk 0:02:56]} 11. Kh1 {[%clk 0:02:49]}  Nc6 {[%clk 0:02:29]} 12. Bc2 {[%clk 0:02:47]}  f5 {[%clk 0:02:27]} 13. d3 {[%clk 0:02:20]}  O-O {[%clk 0:02:16]} 14. e5 {[%clk 0:02:19]}  d6 {[%clk 0:02:11]} 15. cxd4 {[%clk 0:02:15]}  Nxd4 {[%clk 0:01:55]} 16. exd6 {[%clk 0:01:48]}  Nxc2 {[%clk 0:01:51]} 17. Qxc2 {[%clk 0:01:48]}  Qxd6 {[%clk 0:01:51]} 18. Be3 {[%clk 0:01:48]}  Bd7 {[%clk 0:01:31]} 19. Bc5 {[%clk 0:01:45]}  Qc6 {[%clk 0:01:31]} 20. Rac1 {[%clk 0:01:44]}  Rac8 {[%clk 0:01:31]} 21. Qd2 {[%clk 0:01:36]}  Rfe8 {[%clk 0:01:31]} 22. Bd4 {[%clk 0:01:36]}  Qd5 {[%clk 0:01:25]} 23. Bxg7 {[%clk 0:01:36]}  Kxg7 {[%clk 0:01:26]} 24. d4 {[%clk 0:01:30]}  Bb5 {[%clk 0:01:13]} 25. Nc3 {[%clk 0:01:27]}  Qd7 {[%clk 0:01:09]} 26. Rfe1 {[%clk 0:01:27]}  Bc4 {[%clk 0:01:08]} 27. Rcd1 {[%clk 0:01:28]}  Bd5 {[%clk 0:01:05]} 28. Re5 {[%clk 0:01:24]}  b5 {[%clk 0:01:00]} 29. a3 {[%clk 0:01:19]}  Bb3 {[%clk 0:01:00]} 30. Rde1 {[%clk 0:01:18]}  Red8 {[%clk 0:01:00]} 31. d5 {[%clk 0:01:14]}  Kg8 {[%clk 0:00:56]} 32. Rxe6 {[%clk 0:01:10]}  Bxd5 {[%clk 0:00:53]} 33. Nxd5 {[%clk 0:01:06]}  Qxd5 {[%clk 0:00:54]} 34. Re8+ {[%clk 0:01:06]}  Rxe8 {[%clk 0:00:50]} 35. Qxd5+ {[%clk 0:01:07]}  Kg7 {[%clk 0:00:50]} 36. Qd7+ {[%clk 0:01:05]}  Kf8 {[%clk 0:00:50]} 37. Rxe8+ {[%clk 0:01:04]}  Rxe8 {[%clk 0:00:51]} 38. h3 {[%clk 0:01:05]}  Re7 {[%clk 0:00:51]} 39. Qc8+ {[%clk 0:01:05]}  Kf7 {[%clk 0:00:51]} 40. Qxa6 {[%clk 0:01:05]} 1-0


[Site "https://www.chess.com"]

[Event "Titled Tuesday Blitz April 18 Late 2023"]
[White "Hasangatin, Ramil"]
[Black "Liu, Casper"]
[WhiteFideId "4122160"]
[BlackFideId "1454153"]
[WhiteElo "2275"]
[BlackElo "2221"]
[Result "0-1"]
[Round "01"]
[TimeControl "180+2"]
[Date "2023.04.18"]
[WhiteClock "0:00:01"]
[BlackClock "0:00:07"]

1. e4 {[%clk 0:02:59]}  c5 {[%clk 0:02:55]} 2. Nf3 {[%clk 0:02:59]}  d6 {[%clk 0:02:55]} 3. d4 {[%clk 0:02:59]}  cxd4 {[%clk 0:02:56]} 4. Qxd4 {[%clk 0:03:00]}  Nf6 {[%clk 0:02:57]} 5. e5 {[%clk 0:03:00]}  dxe5 {[%clk 0:02:53]} 6. Qxd8+ {[%clk 0:03:01]}  Kxd8 {[%clk 0:02:54]} 7. Nxe5 {[%clk 0:03:01]}  Be6 {[%clk 0:02:55]} 8. Be2 {[%clk 0:03:00]}  Nbd7 {[%clk 0:02:53]} 9. Bf4 {[%clk 0:03:00]}  Nxe5 {[%clk 0:02:52]} 10. Bxe5 {[%clk 0:03:01]}  Nd7 {[%clk 0:02:50]} 11. Bg3 {[%clk 0:03:00]}  f6 {[%clk 0:02:50]} 12. Nc3 {[%clk 0:02:59]}  Bf7 {[%clk 0:02:48]} 13. O-O-O {[%clk 0:03:00]}  e5 {[%clk 0:02:49]} 14. Bg4 {[%clk 0:02:47]}  Be8 {[%clk 0:02:49]} 15. Rd2 {[%clk 0:02:47]}  Kc7 {[%clk 0:02:44]} 16. Nd5+ {[%clk 0:02:42]}  Kc6 {[%clk 0:02:42]} 17. Rhd1 {[%clk 0:02:38]}  Rd8 {[%clk 0:02:38]} 18. Bf3 {[%clk 0:02:33]}  Kc5 {[%clk 0:02:28]} 19. Ne3 {[%clk 0:02:16]}  g6 {[%clk 0:02:13]} 20. Bxb7 {[%clk 0:02:02]}  Bh6 {[%clk 0:01:55]} 21. Bf3 {[%clk 0:01:46]}  e4 {[%clk 0:01:39]} 22. Bxe4 {[%clk 0:01:43]}  f5 {[%clk 0:01:39]} 23. Bd6+ {[%clk 0:01:43]}  Kb6 {[%clk 0:01:39]} 24. Bf3 {[%clk 0:01:35]}  Rc8 {[%clk 0:01:32]} 25. g3 {[%clk 0:01:18]}  Bf7 {[%clk 0:01:02]} 26. Bd5 {[%clk 0:01:15]}  Bxe3 {[%clk 0:00:59]} 27. fxe3 {[%clk 0:01:13]}  Bxd5 {[%clk 0:00:58]} 28. Rxd5 {[%clk 0:01:14]}  Nf6 {[%clk 0:00:59]} 29. R5d3 {[%clk 0:01:09]}  Rhe8 {[%clk 0:00:58]} 30. Bf4 {[%clk 0:01:08]}  Ne4 {[%clk 0:00:56]} 31. Rb3+ {[%clk 0:01:03]}  Ka6 {[%clk 0:00:55]} 32. a3 {[%clk 0:00:59]}  g5 {[%clk 0:00:41]} 33. Bd6 {[%clk 0:00:58]}  Rc6 {[%clk 0:00:31]} 34. Bb4 {[%clk 0:00:57]}  Rec8 {[%clk 0:00:28]} 35. c3 {[%clk 0:00:57]}  h5 {[%clk 0:00:28]} 36. Rd5 {[%clk 0:00:55]}  f4 {[%clk 0:00:16]} 37. exf4 {[%clk 0:00:52]}  gxf4 {[%clk 0:00:14]} 38. gxf4 {[%clk 0:00:53]}  Rg6 {[%clk 0:00:15]} 39. a4 {[%clk 0:00:29]}  Rg2 {[%clk 0:00:09]} 40. Re5 {[%clk 0:00:20]}  Nd2 {[%clk 0:00:06]} 41. Ra3 {[%clk 0:00:16]}  Nc4 {[%clk 0:00:06]} 42. Re6+ {[%clk 0:00:16]}  Kb7 {[%clk 0:00:06]} 43. Ra2 {[%clk 0:00:14]}  Rd8 {[%clk 0:00:06]} 44. Re1 {[%clk 0:00:10]}  Rdd2 {[%clk 0:00:06]} 45. h4 {[%clk 0:00:07]}  Nxb2 {[%clk 0:00:05]} 46. Rxb2 {[%clk 0:00:05]}  Rxb2 {[%clk 0:00:05]} 47. Rf1 {[%clk 0:00:02]}  Ra2 {[%clk 0:00:04]} 48. Kb1 {[%clk 0:00:02]}  Rgb2+ {[%clk 0:00:05]} 49. Kc1 {[%clk 0:00:02]}  Rc2+ {[%clk 0:00:06]} 50. Kb1 {[%clk 0:00:03]}  Rab2+ {[%clk 0:00:07]} 51. Ka1 {[%clk 0:00:03]}  Ra2+ {[%clk 0:00:07]} 52. Kb1 {[%clk 0:00:04]}  Rh2 {[%clk 0:00:06]} 53. Be7 {[%clk 0:00:02]}  Rab2+ {[%clk 0:00:06]} 54. Ka1 {[%clk 0:00:01]}  Rbe2 {[%clk 0:00:06]} 55. Bg5 {[%clk 0:00:01]}  Ra2+ {[%clk 0:00:06]} 56. Kb1 {[%clk 0:00:01]}  Rxa4 {[%clk 0:00:07]} 0-1


[Site "https://www.chess.com"]

[Event "Titled Tuesday Blitz April 18 Late 2023"]
[White "Makridis, Dimitrios"]
[Black "Davidson, Kevin"]
[WhiteFideId "25864475"]
[BlackFideId "2056810"]
[WhiteElo "2277"]
[BlackElo "2151"]
[Result "1-0"]
[Round "01"]
[TimeControl "180+2"]
[Date "2023.04.18"]
[WhiteClock "0:00:09"]
[BlackClock "0:00:02"]

1. e4 {[%clk 0:02:54]}  c5 {[%clk 0:02:59]} 2. Nf3 {[%clk 0:02:53]}  d6 {[%clk 0:02:59]} 3. d4 {[%clk 0:02:17]}  cxd4 {[%clk 0:03:00]} 4. Nxd4 {[%clk 0:02:18]}  Nf6 {[%clk 0:02:56]} 5. Nc3 {[%clk 0:02:17]}  a6 {[%clk 0:02:56]} 6. h3 {[%clk 0:02:15]}  e6 {[%clk 0:02:56]} 7. g4 {[%clk 0:02:14]}  d5 {[%clk 0:02:57]} 8. exd5 {[%clk 0:02:13]}  Nxd5 {[%clk 0:02:58]} 9. Nde2 {[%clk 0:02:14]}  Bb4 {[%clk 0:02:54]} 10. Bg2 {[%clk 0:02:11]}  O-O {[%clk 0:02:54]} 11. O-O {[%clk 0:02:10]}  Nxc3 {[%clk 0:02:54]} 12. Nxc3 {[%clk 0:02:10]}  Qc7 {[%clk 0:02:53]} 13. Qf3 {[%clk 0:02:09]}  f5 {[%clk 0:02:53]} 14. Bf4 {[%clk 0:02:05]}  fxg4 {[%clk 0:02:52]} 15. Bxc7 {[%clk 0:01:51]}  gxf3 {[%clk 0:02:52]} 16. Bh1 {[%clk 0:01:52]}  Nc6 {[%clk 0:02:30]} 17. Rad1 {[%clk 0:01:50]}  Bxc3 {[%clk 0:02:21]} 18. bxc3 {[%clk 0:01:49]}  e5 {[%clk 0:02:22]} 19. Kh2 {[%clk 0:01:44]}  Bf5 {[%clk 0:02:08]} 20. Bxf3 {[%clk 0:01:42]}  Bxc2 {[%clk 0:02:04]} 21. Bd5+ {[%clk 0:01:38]}  Kh8 {[%clk 0:02:05]} 22. Rd2 {[%clk 0:01:39]}  Bf5 {[%clk 0:01:58]} 23. Rb2 {[%clk 0:01:38]}  Nd8 {[%clk 0:01:36]} 24. Bxe5 {[%clk 0:01:35]}  Rc8 {[%clk 0:01:30]} 25. Rg1 {[%clk 0:01:34]}  Bg6 {[%clk 0:01:21]} 26. c4 {[%clk 0:01:34]}  b5 {[%clk 0:01:15]} 27. cxb5 {[%clk 0:01:09]}  axb5 {[%clk 0:01:16]} 28. f4 {[%clk 0:01:07]}  Nf7 {[%clk 0:01:11]} 29. Bxf7 {[%clk 0:00:57]}  Rxf7 {[%clk 0:01:08]} 30. Rxb5 {[%clk 0:00:57]}  Rc2+ {[%clk 0:01:01]} 31. Rg2 {[%clk 0:00:56]}  h6 {[%clk 0:00:50]} 32. Rb6 {[%clk 0:00:49]}  Rxg2+ {[%clk 0:00:45]} 33. Kxg2 {[%clk 0:00:49]}  Be4+ {[%clk 0:00:43]} 34. Kg3 {[%clk 0:00:36]}  Ra7 {[%clk 0:00:32]} 35. Rb2 {[%clk 0:00:17]}  Kh7 {[%clk 0:00:29]} 36. Kf2 {[%clk 0:00:14]}  Kg6 {[%clk 0:00:17]} 37. Ke3 {[%clk 0:00:14]}  Kf5 {[%clk 0:00:17]} 38. Bd4 {[%clk 0:00:11]}  Ra3+ {[%clk 0:00:15]} 39. Rb3 {[%clk 0:00:11]}  Rxb3+ {[%clk 0:00:11]} 40. axb3 {[%clk 0:00:12]}  g5 {[%clk 0:00:09]} 41. fxg5 {[%clk 0:00:12]}  hxg5 {[%clk 0:00:09]} 42. Kf2 {[%clk 0:00:10]}  g4 {[%clk 0:00:04]} 43. h4 {[%clk 0:00:10]}  Kf4 {[%clk 0:00:04]} 44. Be3+ {[%clk 0:00:10]}  Kf5 {[%clk 0:00:05]} 45. Kg3 {[%clk 0:00:10]}  Bc6 {[%clk 0:00:04]} 46. h5 {[%clk 0:00:09]}  Bd7 {[%clk 0:00:02]} 47. b4 {[%clk 0:00:09]}  Bc6 {[%clk 0:00:02]} 48. Kh4 {[%clk 0:00:09]} 1-0


[Site "https://www.chess.com"]

[Event "Titled Tuesday Blitz April 18 Late 2023"]
[White "Suarez Uriel, Adrian"]
[Black "Oganian, Miran"]
[WhiteFideId "22230874"]
[BlackFideId "4122488"]
[WhiteElo "2331"]
[BlackElo "2323"]
[Result "0-1"]
[Round "01"]
[TimeControl "180+2"]
[Date "2023.04.18"]
[WhiteClock "0:01:05"]
[BlackClock "0:01:00"]

1. e4 {[%clk 0:03:00]}  e6 {[%clk 0:03:00]} 2. d4 {[%clk 0:02:59]}  d5 {[%clk 0:02:58]} 3. Nc3 {[%clk 0:02:59]}  Bb4 {[%clk 0:02:58]} 4. e5 {[%clk 0:02:58]}  c5 {[%clk 0:02:58]} 5. a3 {[%clk 0:02:57]}  Bxc3+ {[%clk 0:02:59]} 6. bxc3 {[%clk 0:02:57]}  Ne7 {[%clk 0:02:59]} 7. Qg4 {[%clk 0:02:56]}  Qc7 {[%clk 0:02:56]} 8. Qxg7 {[%clk 0:02:55]}  Rg8 {[%clk 0:02:56]} 9. Qxh7 {[%clk 0:02:56]}  cxd4 {[%clk 0:02:57]} 10. Qd3 {[%clk 0:02:55]}  Nbc6 {[%clk 0:02:54]} 11. f4 {[%clk 0:02:51]}  dxc3 {[%clk 0:02:52]} 12. Nf3 {[%clk 0:02:51]}  Bd7 {[%clk 0:02:52]} 13. Be3 {[%clk 0:02:44]}  Rc8 {[%clk 0:02:49]} 14. h4 {[%clk 0:02:41]}  Nf5 {[%clk 0:02:49]} 15. Bf2 {[%clk 0:02:41]}  d4 {[%clk 0:02:48]} 16. h5 {[%clk 0:02:39]}  Rd8 {[%clk 0:02:20]} 17. h6 {[%clk 0:02:32]}  Bc8 {[%clk 0:02:19]} 18. h7 {[%clk 0:02:17]}  Rh8 {[%clk 0:02:16]} 19. g4 {[%clk 0:02:18]}  Ne3 {[%clk 0:02:15]} 20. Bxe3 {[%clk 0:02:15]}  dxe3 {[%clk 0:02:15]} 21. Qxe3 {[%clk 0:02:16]}  b6 {[%clk 0:02:10]} 22. Bb5 {[%clk 0:02:03]}  a6 {[%clk 0:02:08]} 23. Bd3 {[%clk 0:02:02]}  Bb7 {[%clk 0:02:07]} 24. Kf2 {[%clk 0:02:03]}  Ne7 {[%clk 0:02:06]} 25. Kg3 {[%clk 0:01:49]}  Nd5 {[%clk 0:02:06]} 26. Qf2 {[%clk 0:01:48]}  Qe7 {[%clk 0:01:39]} 27. g5 {[%clk 0:01:45]}  Qc7 {[%clk 0:01:32]} 28. Rad1 {[%clk 0:01:43]}  Ne7 {[%clk 0:01:31]} 29. Rh6 {[%clk 0:01:34]}  Nf5+ {[%clk 0:01:27]} 30. Bxf5 {[%clk 0:01:31]}  Rxd1 {[%clk 0:01:28]} 31. Bd3 {[%clk 0:01:17]}  Rxd3 {[%clk 0:01:21]} 32. cxd3 {[%clk 0:01:17]}  c2 {[%clk 0:01:20]} 33. g6 {[%clk 0:01:17]}  fxg6 {[%clk 0:01:14]} 34. Nd4 {[%clk 0:01:15]}  c1=Q {[%clk 0:01:10]} 35. Nxe6 {[%clk 0:01:15]}  Qe7 {[%clk 0:01:02]} 36. Qxb6 {[%clk 0:01:12]}  Qe1+ {[%clk 0:01:01]} 37. Kg4 {[%clk 0:01:09]}  Qe2+ {[%clk 0:01:00]} 38. Kg3 {[%clk 0:01:05]}  Qg2# {[%clk 0:01:00]} 0-1


[Site "https://www.chess.com"]

[Event "Titled Tuesday Blitz April 18 Late 2023"]
[White "Thomforde-Toates, Noah"]
[Black "micke12a"]
[WhiteFideId "30951992"]
[WhiteElo "2741"]
[BlackElo "2370"]
[Result "1-0"]
[Round "01"]
[TimeControl "180+2"]
[Date "2023.04.18"]
[WhiteClock "0:00:40"]
[BlackClock "0:00:02"]

1. e4 {[%clk 0:03:00]}  c5 {[%clk 0:02:58]} 2. Nf3 {[%clk 0:03:00]}  d6 {[%clk 0:02:59]} 3. Nc3 {[%clk 0:02:59]}  a6 {[%clk 0:02:53]} 4. d4 {[%clk 0:02:54]}  cxd4 {[%clk 0:02:53]} 5. Nxd4 {[%clk 0:02:55]}  Nf6 {[%clk 0:02:52]} 6. Bc4 {[%clk 0:02:49]}  e6 {[%clk 0:02:51]} 7. Bb3 {[%clk 0:02:48]}  b5 {[%clk 0:02:51]} 8. O-O {[%clk 0:02:48]}  Be7 {[%clk 0:02:50]} 9. Re1 {[%clk 0:02:47]}  O-O {[%clk 0:02:50]} 10. a3 {[%clk 0:02:48]}  Bb7 {[%clk 0:02:49]} 11. Qf3 {[%clk 0:02:45]}  Nbd7 {[%clk 0:02:47]} 12. Bg5 {[%clk 0:02:43]}  Qb6 {[%clk 0:02:46]} 13. Rad1 {[%clk 0:02:41]}  h6 {[%clk 0:02:41]} 14. Bh4 {[%clk 0:02:28]}  Ne5 {[%clk 0:02:37]} 15. Qh3 {[%clk 0:02:27]}  Rac8 {[%clk 0:02:34]} 16. Kh1 {[%clk 0:02:23]}  Nc4 {[%clk 0:02:30]} 17. Nxe6 {[%clk 0:01:59]}  fxe6 {[%clk 0:02:17]} 18. Qxe6+ {[%clk 0:02:00]}  Rf7 {[%clk 0:02:16]} 19. e5 {[%clk 0:01:58]}  Qc6 {[%clk 0:01:56]} 20. f3 {[%clk 0:01:51]}  dxe5 {[%clk 0:01:51]} 21. Rxe5 {[%clk 0:01:36]}  Qxe6 {[%clk 0:01:25]} 22. Rxe6 {[%clk 0:01:37]}  Bc5 {[%clk 0:01:18]} 23. Rde1 {[%clk 0:01:24]}  g5 {[%clk 0:01:07]} 24. Bg3 {[%clk 0:01:18]}  Kg7 {[%clk 0:01:07]} 25. Bxc4 {[%clk 0:01:14]}  bxc4 {[%clk 0:01:06]} 26. Be5 {[%clk 0:01:15]}  Rc6 {[%clk 0:00:52]} 27. Re8 {[%clk 0:01:05]}  Rc8 {[%clk 0:00:27]} 28. Rxc8 {[%clk 0:01:01]}  Bxc8 {[%clk 0:00:27]} 29. Ne4 {[%clk 0:00:59]}  Be7 {[%clk 0:00:26]} 30. Bxf6+ {[%clk 0:00:58]}  Bxf6 {[%clk 0:00:26]} 31. Nd6 {[%clk 0:00:59]}  Bxb2 {[%clk 0:00:20]} 32. Nxc8 {[%clk 0:00:55]}  Bxa3 {[%clk 0:00:19]} 33. Ra1 {[%clk 0:00:55]}  Rb7 {[%clk 0:00:16]} 34. h4 {[%clk 0:00:53]}  Bc5 {[%clk 0:00:14]} 35. Rxa6 {[%clk 0:00:50]}  Rb8 {[%clk 0:00:14]} 36. Rc6 {[%clk 0:00:50]}  Rb1+ {[%clk 0:00:13]} 37. Kh2 {[%clk 0:00:50]}  Be3 {[%clk 0:00:12]} 38. Rxc4 {[%clk 0:00:46]}  Bf4+ {[%clk 0:00:12]} 39. g3 {[%clk 0:00:45]}  Be5 {[%clk 0:00:13]} 40. hxg5 {[%clk 0:00:45]}  hxg5 {[%clk 0:00:13]} 41. Ne7 {[%clk 0:00:45]}  Rd1 {[%clk 0:00:10]} 42. Nf5+ {[%clk 0:00:44]}  Kf6 {[%clk 0:00:09]} 43. Ne3 {[%clk 0:00:44]}  Rd2+ {[%clk 0:00:10]} 44. Kh3 {[%clk 0:00:45]}  Bd6 {[%clk 0:00:02]} 45. Ng4+ {[%clk 0:00:40]} 1-0


[Site "https://www.chess.com"]

[Event "Titled Tuesday Blitz April 18 Late 2023"]
[White "Todorovic, Bojan"]
[Black "Spata, German"]
[WhiteFideId "917087"]
[BlackFideId "113026"]
[WhiteElo "2266"]
[BlackElo "2238"]
[Result "0-1"]
[Round "01"]
[TimeControl "180+2"]
[Date "2023.04.18"]
[WhiteClock "0:00:01"]
[BlackClock "0:00:03"]

1. Nf3 {[%clk 0:02:59]}  Nf6 {[%clk 0:02:56]} 2. c4 {[%clk 0:02:58]}  e6 {[%clk 0:02:44]} 3. g3 {[%clk 0:02:57]}  d5 {[%clk 0:02:43]} 4. Bg2 {[%clk 0:02:57]}  Be7 {[%clk 0:02:42]} 5. O-O {[%clk 0:02:56]}  O-O {[%clk 0:02:40]} 6. b3 {[%clk 0:02:56]}  c6 {[%clk 0:02:30]} 7. Bb2 {[%clk 0:02:54]}  b6 {[%clk 0:02:28]} 8. d3 {[%clk 0:02:42]}  Bb7 {[%clk 0:02:28]} 9. Nbd2 {[%clk 0:02:42]}  c5 {[%clk 0:02:25]} 10. e3 {[%clk 0:02:41]}  Nc6 {[%clk 0:02:24]} 11. Qe2 {[%clk 0:02:40]}  Qc7 {[%clk 0:02:19]} 12. a3 {[%clk 0:02:38]}  Rfd8 {[%clk 0:02:18]} 13. Rac1 {[%clk 0:02:37]}  Rac8 {[%clk 0:02:17]} 14. cxd5 {[%clk 0:02:35]}  Nxd5 {[%clk 0:02:17]} 15. Nc4 {[%clk 0:02:29]}  Bf6 {[%clk 0:02:14]} 16. Rfd1 {[%clk 0:02:21]}  Qb8 {[%clk 0:02:10]} 17. Bxf6 {[%clk 0:02:18]}  Nxf6 {[%clk 0:02:09]} 18. Qb2 {[%clk 0:02:13]}  Rd7 {[%clk 0:02:05]} 19. b4 {[%clk 0:02:09]}  cxb4 {[%clk 0:02:03]} 20. axb4 {[%clk 0:02:08]}  Rcd8 {[%clk 0:02:03]} 21. b5 {[%clk 0:02:06]}  Ne7 {[%clk 0:01:58]} 22. Nfe5 {[%clk 0:02:05]}  Rc7 {[%clk 0:01:53]} 23. Bxb7 {[%clk 0:01:47]}  Qxb7 {[%clk 0:01:54]} 24. e4 {[%clk 0:01:41]}  h6 {[%clk 0:01:54]} 25. Ne3 {[%clk 0:01:34]}  Rdc8 {[%clk 0:01:48]} 26. Rxc7 {[%clk 0:01:28]}  Qxc7 {[%clk 0:01:49]} 27. N3c4 {[%clk 0:01:21]}  Rd8 {[%clk 0:01:37]} 28. Qa3 {[%clk 0:01:19]}  Nxe4 {[%clk 0:01:30]} 29. Ra1 {[%clk 0:01:13]}  Nd6 {[%clk 0:01:09]} 30. Qxa7 {[%clk 0:01:11]}  Qxa7 {[%clk 0:01:08]} 31. Rxa7 {[%clk 0:01:10]}  Nxc4 {[%clk 0:00:49]} 32. dxc4 {[%clk 0:01:06]}  Kf8 {[%clk 0:00:38]} 33. Nd7+ {[%clk 0:01:04]}  Ke8 {[%clk 0:00:36]} 34. Nxb6 {[%clk 0:01:04]}  Rd1+ {[%clk 0:00:32]} 35. Kg2 {[%clk 0:01:04]}  Nf5 {[%clk 0:00:33]} 36. c5 {[%clk 0:00:54]}  Rb1 {[%clk 0:00:31]} 37. Ra8+ {[%clk 0:00:41]}  Ke7 {[%clk 0:00:31]} 38. Nc8+ {[%clk 0:00:41]}  Kd7 {[%clk 0:00:26]} 39. c6+ {[%clk 0:00:39]}  Kc7 {[%clk 0:00:25]} 40. b6+ {[%clk 0:00:39]}  Kxc6 {[%clk 0:00:24]} 41. Ra7 {[%clk 0:00:36]}  Nd6 {[%clk 0:00:08]} 42. Nxd6 {[%clk 0:00:31]}  Kxd6 {[%clk 0:00:09]} 43. Rxf7 {[%clk 0:00:30]}  g5 {[%clk 0:00:07]} 44. b7 {[%clk 0:00:29]}  Kc6 {[%clk 0:00:07]} 45. Kf3 {[%clk 0:00:24]}  h5 {[%clk 0:00:03]} 46. Ke4 {[%clk 0:00:23]}  g4 {[%clk 0:00:03]} 47. Kf4 {[%clk 0:00:22]}  Rb5 {[%clk 0:00:03]} 48. Re7 {[%clk 0:00:12]}  Kd6 {[%clk 0:00:03]} 49. Rh7 {[%clk 0:00:12]}  Rf5+ {[%clk 0:00:03]} 50. Ke3 {[%clk 0:00:12]}  Rb5 {[%clk 0:00:04]} 51. Rxh5 {[%clk 0:00:08]}  Rxb7 {[%clk 0:00:03]} 52. Rg5 {[%clk 0:00:08]}  Rb4 {[%clk 0:00:03]} 53. Rh5 {[%clk 0:00:08]}  Ke7 {[%clk 0:00:03]} 54. Rh4 {[%clk 0:00:08]}  Kf6 {[%clk 0:00:03]} 55. Ke2 {[%clk 0:00:05]}  Kg5 {[%clk 0:00:03]} 56. Kf1 {[%clk 0:00:05]}  e5 {[%clk 0:00:03]} 57. Kg2 {[%clk 0:00:04]}  Rb2 {[%clk 0:00:03]} 58. h3 {[%clk 0:00:03]}  gxh3+ {[%clk 0:00:03]} 59. Rxh3 {[%clk 0:00:03]}  e4 {[%clk 0:00:03]} 60. Kg1 {[%clk 0:00:01]}  Kg4 {[%clk 0:00:02]} 61. Rh4+ {[%clk 0:00:01]}  Kf5 {[%clk 0:00:03]} 62. Rf4+ {[%clk 0:00:02]}  Ke5 {[%clk 0:00:03]} 63. Kg2 {[%clk 0:00:01]}  e3 {[%clk 0:00:03]} 64. Rf8 {[%clk 0:00:01]}  Rxf2+ {[%clk 0:00:03]} 0-1


[Site "https://www.chess.com"]